[Event "January 2 Late 2024"]
[Site "https://www.chess.com"]
[Date "2024.01.02"]
[Round "5"]
[White "Kotlyar, Kirill"]
[Black "Ramos Rivera, Jesse James"]
[Result "0-1"]
[Board "119"]
[TimeControl "180+1"]
[WhiteFideId "24145599"]
[BlackFideId "3103250"]
[WhiteElo "2554"]
[BlackElo "2423"]
[WhiteTeam "RUS"]
[BlackTeam "PUR"]
[WhiteClock "0:00:05"]
[BlackClock "0:00:18"]

1. e4 {[%clk 0:02:05]}  c5 {[%clk 0:02:55]} 2. Nf3 {[%clk 0:02:04]}  g6 {[%clk 0:02:55]} 3. d4 {[%clk 0:02:01]}  cxd4 {[%clk 0:02:56]} 4. Nxd4 {[%clk 0:02:02]}  Bg7 {[%clk 0:02:56]} 5. Nc3 {[%clk 0:02:02]}  Nc6 {[%clk 0:02:56]} 6. Be3 {[%clk 0:02:00]}  Nf6 {[%clk 0:02:55]} 7. Nxc6 {[%clk 0:01:56]}  bxc6 {[%clk 0:02:53]} 8. Bc4 {[%clk 0:01:55]}  O-O {[%clk 0:02:50]} 9. O-O {[%clk 0:01:56]}  Nxe4 {[%clk 0:02:46]} 10. Nxe4 {[%clk 0:01:53]}  d5 {[%clk 0:02:46]} 11. Nc5 {[%clk 0:01:43]}  dxc4 {[%clk 0:02:41]} 12. Qe2 {[%clk 0:01:42]}  Bxb2 {[%clk 0:02:18]} 13. Rab1 {[%clk 0:01:41]}  Bf6 {[%clk 0:02:07]} 14. Qxc4 {[%clk 0:01:37]}  Qd5 {[%clk 0:02:06]} 15. Qa4 {[%clk 0:01:29]}  Bf5 {[%clk 0:01:59]} 16. Rfd1 {[%clk 0:01:28]}  Qe5 {[%clk 0:01:57]} 17. Bd4 {[%clk 0:01:01]}  Qe2 {[%clk 0:01:42]} 18. Bxf6 {[%clk 0:01:00]}  exf6 {[%clk 0:01:40]} 19. Nd3 {[%clk 0:00:52]}  Rfc8 {[%clk 0:01:19]} 20. Re1 {[%clk 0:00:34]}  Qd2 {[%clk 0:01:19]} 21. Qc4 {[%clk 0:00:29]}  Qa5 {[%clk 0:01:10]} 22. h3 {[%clk 0:00:19]}  Qd5 {[%clk 0:01:07]} 23. Qc3 {[%clk 0:00:19]}  Kg7 {[%clk 0:01:04]} 24. Nf4 {[%clk 0:00:18]}  Qxa2 {[%clk 0:01:00]} 25. Rbd1 {[%clk 0:00:17]}  Qxc2 {[%clk 0:00:53]} 26. Qa1 {[%clk 0:00:17]}  Re8 {[%clk 0:00:48]} 27. Rf1 {[%clk 0:00:14]}  a5 {[%clk 0:00:47]} 28. Rd6 {[%clk 0:00:13]}  Re5 {[%clk 0:00:43]} 29. Rc1 {[%clk 0:00:12]}  Qe4 {[%clk 0:00:42]} 30. g3 {[%clk 0:00:09]}  a4 {[%clk 0:00:35]} 31. Rcxc6 {[%clk 0:00:07]}  a3 {[%clk 0:00:35]} 32. Rd1 {[%clk 0:00:04]}  a2 {[%clk 0:00:35]} 33. Rc3 {[%clk 0:00:04]}  Qb1 {[%clk 0:00:31]} 34. Rcc1 {[%clk 0:00:04]}  Qxa1 {[%clk 0:00:27]} 35. Rxa1 {[%clk 0:00:05]}  Bb1 {[%clk 0:00:26]} 36. Kg2 {[%clk 0:00:05]}  Rae8 {[%clk 0:00:24]} 37. Nd3 {[%clk 0:00:05]}  Re2 {[%clk 0:00:23]} 38. Nb4 {[%clk 0:00:05]}  Rb2 {[%clk 0:00:21]} 39. Rd4 {[%clk 0:00:03]}  Ree2 {[%clk 0:00:21]} 40. Rf4 {[%clk 0:00:03]}  f5 {[%clk 0:00:20]} 41. g4 {[%clk 0:00:03]}  Be4+ {[%clk 0:00:19]} 42. Kg3 {[%clk 0:00:03]}  g5 {[%clk 0:00:18]} 43. Rxf5 {[%clk 0:00:02]}  Bxf5 {[%clk 0:00:18]} 44. gxf5 {[%clk 0:00:03]}  Kf6 {[%clk 0:00:18]} 45. Nd3 {[%clk 0:00:03]}  Rb3 {[%clk 0:00:17]} 46. Kg2 {[%clk 0:00:01]}  Rxd3 {[%clk 0:00:16]} 47. Kf1 {[%clk 0:00:01]}  Rb2 {[%clk 0:00:16]} 48. Ke1 {[%clk 0:00:01]}  Rb1+ {[%clk 0:00:17]} 49. Rxb1 {[%clk 0:00:02]}  axb1=Q+ {[%clk 0:00:17]} 50. Ke2 {[%clk 0:00:03]}  Qc2+ {[%clk 0:00:18]} 51. Kf1 {[%clk 0:00:03]}  Rd1+ {[%clk 0:00:19]} 52. Kg2 {[%clk 0:00:03]}  Qe4+ {[%clk 0:00:19]} 53. Kg3 {[%clk 0:00:04]}  Rg1+ {[%clk 0:00:17]} 54. Kh2 {[%clk 0:00:05]}  Qg2# {[%clk 0:00:18]} 0-1

[Event "January 2 Late 2024"]
[Site "https://www.chess.com"]
[Date "2024.01.02"]
[Round "5"]
[White "Garrido, Denis"]
[Black "Womacka, Mathias"]
[Result "0-1"]
[Board "120"]
[TimeControl "180+1"]
[WhiteFideId "601217"]
[BlackFideId "4611390"]
[WhiteElo "2414"]
[BlackElo "2551"]
[WhiteTeam "FRA"]
[BlackTeam "GER"]
[WhiteClock "0:00:00"]
[BlackClock "0:00:37"]

1. d4 {[%clk 0:02:56]}  Nf6 {[%clk 0:02:58]} 2. c4 {[%clk 0:02:54]}  e6 {[%clk 0:02:59]} 3. Nc3 {[%clk 0:02:53]}  Bb4 {[%clk 0:02:59]} 4. e3 {[%clk 0:02:53]}  c5 {[%clk 0:02:56]} 5. Bd3 {[%clk 0:02:52]}  Nc6 {[%clk 0:02:55]} 6. Ne2 {[%clk 0:02:51]}  cxd4 {[%clk 0:02:54]} 7. exd4 {[%clk 0:02:49]}  d5 {[%clk 0:02:55]} 8. cxd5 {[%clk 0:02:48]}  Nxd5 {[%clk 0:02:55]} 9. O-O {[%clk 0:02:48]}  O-O {[%clk 0:02:54]} 10. Be4 {[%clk 0:02:27]}  Re8 {[%clk 0:02:44]} 11. Qc2 {[%clk 0:02:04]}  Nf6 {[%clk 0:02:35]} 12. Bxc6 {[%clk 0:02:01]}  bxc6 {[%clk 0:02:32]} 13. Bg5 {[%clk 0:01:53]}  Be7 {[%clk 0:02:22]} 14. Rfd1 {[%clk 0:01:47]}  Ba6 {[%clk 0:02:18]} 15. b3 {[%clk 0:01:35]}  Bxe2 {[%clk 0:02:16]} 16. Nxe2 {[%clk 0:01:13]}  Qd5 {[%clk 0:02:10]} 17. Bxf6 {[%clk 0:01:07]}  Bxf6 {[%clk 0:02:11]} 18. Rac1 {[%clk 0:01:06]}  Rac8 {[%clk 0:02:06]} 19. Qc5 {[%clk 0:01:04]}  Qxc5 {[%clk 0:01:59]} 20. Rxc5 {[%clk 0:00:55]}  Red8 {[%clk 0:01:58]} 21. g3 {[%clk 0:00:42]}  g6 {[%clk 0:01:54]} 22. Rdc1 {[%clk 0:00:36]}  Bxd4 {[%clk 0:01:53]} 23. Nxd4 {[%clk 0:00:34]}  Rxd4 {[%clk 0:01:53]} 24. Rxc6 {[%clk 0:00:34]}  Rxc6 {[%clk 0:01:54]} 25. Rxc6 {[%clk 0:00:35]}  a5 {[%clk 0:01:45]} 26. Ra6 {[%clk 0:00:29]}  Rd5 {[%clk 0:01:45]} 27. Kg2 {[%clk 0:00:29]}  g5 {[%clk 0:01:42]} 28. Kf3 {[%clk 0:00:28]}  Kg7 {[%clk 0:01:38]} 29. Ke3 {[%clk 0:00:26]}  h5 {[%clk 0:01:37]} 30. Ra8 {[%clk 0:00:26]}  Kg6 {[%clk 0:01:34]} 31. Rc8 {[%clk 0:00:19]}  Kf5 {[%clk 0:01:24]} 32. Rc3 {[%clk 0:00:19]}  Kg4 {[%clk 0:01:20]} 33. a3 {[%clk 0:00:18]}  Kh3 {[%clk 0:01:18]} 34. b4 {[%clk 0:00:19]}  axb4 {[%clk 0:01:15]} 35. axb4 {[%clk 0:00:19]}  Rb5 {[%clk 0:01:15]} 36. Rc5 {[%clk 0:00:16]}  Rxb4 {[%clk 0:01:12]} 37. Rxg5 {[%clk 0:00:15]}  Kxh2 {[%clk 0:01:12]} 38. Rxh5+ {[%clk 0:00:16]}  Kg2 {[%clk 0:01:12]} 39. Rh7 {[%clk 0:00:15]}  f5 {[%clk 0:01:06]} 40. Re7 {[%clk 0:00:14]}  Re4+ {[%clk 0:01:05]} 41. Kd3 {[%clk 0:00:12]}  Kxf2 {[%clk 0:01:06]} 42. g4 {[%clk 0:00:12]}  Rxg4 {[%clk 0:01:03]} 43. Rxe6 {[%clk 0:00:12]}  Ra4 {[%clk 0:01:00]} 44. Rf6 {[%clk 0:00:12]}  f4 {[%clk 0:01:00]} 45. Rf8 {[%clk 0:00:08]}  f3 {[%clk 0:01:00]} 46. Rf7 {[%clk 0:00:07]}  Ra8 {[%clk 0:00:57]} 47. Ke4 {[%clk 0:00:05]}  Ke2 {[%clk 0:00:50]} 48. Re7 {[%clk 0:00:04]}  Rf8 {[%clk 0:00:44]} 49. Ra7 {[%clk 0:00:01]}  f2 {[%clk 0:00:38]} 50. Ra2+ {[%clk 0:00:01]}  Kf1 {[%clk 0:00:37]} 51. Ke3 {[%clk 0:00:00]}  Kg1 {[%clk 0:00:37]} 0-1

[Event "January 2 Late 2024"]
[Site "https://www.chess.com"]
[Date "2024.01.02"]
[Round "5"]
[White "Rama, Tejas"]
[Black "Awoki, Daniel Teidi"]
[Result "1-0"]
[Board "121"]
[TimeControl "180+1"]
[WhiteFideId "30907381"]
[BlackFideId "2100827"]
[WhiteElo "2548"]
[BlackElo "2413"]
[WhiteTeam "USA"]
[BlackTeam "BRA"]
[WhiteClock "0:00:41"]
[BlackClock "0:01:00"]

1. d4 {[%clk 0:02:57]}  Nf6 {[%clk 0:02:58]} 2. c4 {[%clk 0:02:56]}  e6 {[%clk 0:02:58]} 3. Nf3 {[%clk 0:02:56]}  d5 {[%clk 0:02:59]} 4. Nc3 {[%clk 0:02:55]}  Be7 {[%clk 0:02:59]} 5. Bf4 {[%clk 0:02:52]}  O-O {[%clk 0:02:58]} 6. e3 {[%clk 0:02:52]}  a6 {[%clk 0:02:58]} 7. c5 {[%clk 0:02:48]}  b6 {[%clk 0:02:55]} 8. b4 {[%clk 0:02:40]}  a5 {[%clk 0:02:54]} 9. a3 {[%clk 0:02:39]}  Ba6 {[%clk 0:02:54]} 10. Bxa6 {[%clk 0:02:36]}  Nxa6 {[%clk 0:02:54]} 11. b5 {[%clk 0:02:35]}  Nxc5 {[%clk 0:02:50]} 12. dxc5 {[%clk 0:02:34]}  Bxc5 {[%clk 0:02:51]} 13. O-O {[%clk 0:02:31]}  Re8 {[%clk 0:02:45]} 14. Qc2 {[%clk 0:02:29]}  Nd7 {[%clk 0:02:42]} 15. Na4 {[%clk 0:02:25]}  e5 {[%clk 0:02:40]} 16. Nxc5 {[%clk 0:02:21]}  bxc5 {[%clk 0:02:38]} 17. Bg3 {[%clk 0:02:20]}  a4 {[%clk 0:02:35]} 18. e4 {[%clk 0:02:15]}  d4 {[%clk 0:02:35]} 19. Nd2 {[%clk 0:02:11]}  Qe7 {[%clk 0:02:28]} 20. Nc4 {[%clk 0:02:00]}  f6 {[%clk 0:02:27]} 21. f3 {[%clk 0:01:59]}  Nb6 {[%clk 0:02:27]} 22. Rfc1 {[%clk 0:01:57]}  Qd7 {[%clk 0:02:19]} 23. Rab1 {[%clk 0:01:47]}  Reb8 {[%clk 0:02:17]} 24. Nd2 {[%clk 0:01:38]}  Ra5 {[%clk 0:02:07]} 25. Qxc5 {[%clk 0:01:37]}  Rb7 {[%clk 0:01:50]} 26. Be1 {[%clk 0:01:27]}  Qd6 {[%clk 0:01:39]} 27. Qxd6 {[%clk 0:01:14]}  cxd6 {[%clk 0:01:40]} 28. Rc6 {[%clk 0:01:06]}  d5 {[%clk 0:01:39]} 29. exd5 {[%clk 0:00:55]}  Nxd5 {[%clk 0:01:38]} 30. b6 {[%clk 0:00:56]}  Nc3 {[%clk 0:01:22]} 31. Rb4 {[%clk 0:00:46]}  Nd5 {[%clk 0:01:13]} 32. Nc4 {[%clk 0:00:43]}  Ra6 {[%clk 0:01:09]} 33. Rc8+ {[%clk 0:00:40]}  Kf7 {[%clk 0:01:08]} 34. Nd6+ {[%clk 0:00:41]}  Ke6 {[%clk 0:01:05]} 35. Nxb7 {[%clk 0:00:41]}  Nxb4 {[%clk 0:01:00]} 36. Nc5+ {[%clk 0:00:41]} 1-0

[Event "January 2 Late 2024"]
[Site "https://www.chess.com"]
[Date "2024.01.02"]
[Round "5"]
[White "Mendez Fortes, Eduardo Jesus"]
[Black "ArchibaldCerveza29"]
[Result "1-0"]
[Board "122"]
[TimeControl "180+1"]
[WhiteFideId "3502376"]
[WhiteElo "2543"]
[BlackElo "2411"]
[WhiteTeam "CUB"]
[WhiteClock "0:00:49"]
[BlackClock "0:00:00"]

1. e4 {[%clk 0:02:57]}  e5 {[%clk 0:02:58]} 2. Nf3 {[%clk 0:02:55]}  Nc6 {[%clk 0:02:58]} 3. Bb5 {[%clk 0:02:54]}  g6 {[%clk 0:02:58]} 4. c3 {[%clk 0:02:52]}  a6 {[%clk 0:02:58]} 5. Ba4 {[%clk 0:02:49]}  Bg7 {[%clk 0:02:57]} 6. d4 {[%clk 0:02:49]}  exd4 {[%clk 0:02:57]} 7. cxd4 {[%clk 0:02:50]}  b5 {[%clk 0:02:57]} 8. Bb3 {[%clk 0:02:50]}  Nge7 {[%clk 0:02:56]} 9. O-O {[%clk 0:02:49]}  O-O {[%clk 0:02:55]} 10. Nc3 {[%clk 0:02:49]}  d6 {[%clk 0:02:56]} 11. h3 {[%clk 0:02:48]}  Na5 {[%clk 0:02:56]} 12. Bc2 {[%clk 0:02:48]}  c5 {[%clk 0:02:55]} 13. b3 {[%clk 0:02:44]}  cxd4 {[%clk 0:02:41]} 14. Nxd4 {[%clk 0:02:43]}  Nec6 {[%clk 0:02:19]} 15. Be3 {[%clk 0:02:29]}  Bb7 {[%clk 0:02:11]} 16. Rc1 {[%clk 0:02:26]}  Re8 {[%clk 0:01:57]} 17. Bb1 {[%clk 0:02:15]}  Rc8 {[%clk 0:01:56]} 18. Nxc6 {[%clk 0:02:13]}  Nxc6 {[%clk 0:01:54]} 19. Nd5 {[%clk 0:02:12]}  Qh4 {[%clk 0:01:46]} 20. Qd2 {[%clk 0:02:06]}  Ne5 {[%clk 0:01:29]} 21. Bg5 {[%clk 0:02:02]}  Qh5 {[%clk 0:01:22]} 22. Ne7+ {[%clk 0:01:15]}  Kh8 {[%clk 0:01:21]} 23. Nxc8 {[%clk 0:01:13]}  Bxc8 {[%clk 0:01:22]} 24. f4 {[%clk 0:01:11]}  Nd7 {[%clk 0:00:52]} 25. Qxd6 {[%clk 0:01:08]}  Nf8 {[%clk 0:00:38]} 26. Bf6 {[%clk 0:01:04]}  Ne6 {[%clk 0:00:23]} 27. Bxg7+ {[%clk 0:01:02]}  Kxg7 {[%clk 0:00:22]} 28. f5 {[%clk 0:01:02]}  Ng5 {[%clk 0:00:22]} 29. f6+ {[%clk 0:01:02]}  Kg8 {[%clk 0:00:18]} 30. Qe7 {[%clk 0:00:50]}  Nxh3+ {[%clk 0:00:17]} 31. gxh3 {[%clk 0:00:49]}  Qg5+ {[%clk 0:00:00]} 32. Kh1 {[%clk 0:00:49]} 1-0

[Event "January 2 Late 2024"]
[Site "https://www.chess.com"]
[Date "2024.01.02"]
[Round "5"]
[White "Pham, Le Thao Nguyen"]
[Black "Weinstein, Norman"]
[Result "0-1"]
[Board "123"]
[TimeControl "180+1"]
[WhiteFideId "12401226"]
[BlackFideId "2000466"]
[WhiteElo "2543"]
[BlackElo "2411"]
[WhiteTeam "VIE"]
[BlackTeam "USA"]
[WhiteClock "0:00:07"]
[BlackClock "0:01:24"]

1. d4 {[%clk 0:02:19]}  c5 {[%clk 0:02:59]} 2. c3 {[%clk 0:02:11]}  e6 {[%clk 0:02:59]} 3. Nf3 {[%clk 0:02:09]}  d5 {[%clk 0:02:59]} 4. Bg5 {[%clk 0:02:06]}  Be7 {[%clk 0:02:59]} 5. Bxe7 {[%clk 0:02:05]}  Qxe7 {[%clk 0:02:59]} 6. e3 {[%clk 0:02:03]}  Nf6 {[%clk 0:02:59]} 7. Nbd2 {[%clk 0:02:04]}  O-O {[%clk 0:02:59]} 8. Ne5 {[%clk 0:01:48]}  Nc6 {[%clk 0:02:56]} 9. Bd3 {[%clk 0:01:39]}  Nxe5 {[%clk 0:02:54]} 10. dxe5 {[%clk 0:01:40]}  Nd7 {[%clk 0:02:54]} 11. f4 {[%clk 0:01:40]}  f6 {[%clk 0:02:54]} 12. Qh5 {[%clk 0:01:28]}  g6 {[%clk 0:02:48]} 13. Qh4 {[%clk 0:01:27]}  Rf7 {[%clk 0:02:47]} 14. exf6 {[%clk 0:01:14]}  Qxf6 {[%clk 0:02:47]} 15. Qxf6 {[%clk 0:01:13]}  Rxf6 {[%clk 0:02:47]} 16. Nf3 {[%clk 0:01:13]}  e5 {[%clk 0:02:39]} 17. fxe5 {[%clk 0:00:45]}  Re6 {[%clk 0:02:39]} 18. O-O {[%clk 0:00:37]}  Nxe5 {[%clk 0:02:38]} 19. Nxe5 {[%clk 0:00:36]}  Rxe5 {[%clk 0:02:38]} 20. Rae1 {[%clk 0:00:36]}  Bd7 {[%clk 0:02:33]} 21. c4 {[%clk 0:00:28]}  Bc6 {[%clk 0:02:28]} 22. cxd5 {[%clk 0:00:27]}  Bxd5 {[%clk 0:02:28]} 23. b3 {[%clk 0:00:27]}  Rae8 {[%clk 0:02:26]} 24. Kf2 {[%clk 0:00:27]}  Rf8+ {[%clk 0:02:18]} 25. Kg1 {[%clk 0:00:27]}  Rfe8 {[%clk 0:02:17]} 26. Kf2 {[%clk 0:00:28]}  Kg7 {[%clk 0:02:17]} 27. Re2 {[%clk 0:00:26]}  b6 {[%clk 0:02:15]} 28. Rfe1 {[%clk 0:00:21]}  R8e7 {[%clk 0:02:09]} 29. e4 {[%clk 0:00:20]}  Bc6 {[%clk 0:02:09]} 30. h4 {[%clk 0:00:19]}  Rf7+ {[%clk 0:02:03]} 31. Kg1 {[%clk 0:00:18]}  Rf4 {[%clk 0:02:00]} 32. g3 {[%clk 0:00:19]}  Rf6 {[%clk 0:01:58]} 33. Re3 {[%clk 0:00:18]}  Rd6 {[%clk 0:01:56]} 34. Kf2 {[%clk 0:00:18]}  h6 {[%clk 0:01:54]} 35. Kf3 {[%clk 0:00:15]}  g5 {[%clk 0:01:51]} 36. hxg5 {[%clk 0:00:13]}  hxg5 {[%clk 0:01:50]} 37. Kf2 {[%clk 0:00:11]}  Rf6+ {[%clk 0:01:49]} 38. Kg1 {[%clk 0:00:11]}  Rh6 {[%clk 0:01:48]} 39. Kg2 {[%clk 0:00:11]}  Rd6 {[%clk 0:01:46]} 40. Kg1 {[%clk 0:00:11]}  b5 {[%clk 0:01:46]} 41. Rc1 {[%clk 0:00:09]}  Rd4 {[%clk 0:01:45]} 42. Rce1 {[%clk 0:00:08]}  a6 {[%clk 0:01:44]} 43. Kf2 {[%clk 0:00:07]}  Rd8 {[%clk 0:01:43]} 44. Kg1 {[%clk 0:00:07]}  Rh8 {[%clk 0:01:42]} 45. Kg2 {[%clk 0:00:07]}  Rd8 {[%clk 0:01:40]} 46. Kg1 {[%clk 0:00:07]}  Be8 {[%clk 0:01:40]} 47. Rf1 {[%clk 0:00:05]}  Bg6 {[%clk 0:01:39]} 48. Rfe1 {[%clk 0:00:05]}  Rd4 {[%clk 0:01:39]} 49. Kf2 {[%clk 0:00:05]}  Kf6 {[%clk 0:01:38]} 50. Kf3 {[%clk 0:00:05]}  Bh5+ {[%clk 0:01:37]} 51. Kf2 {[%clk 0:00:06]}  Ke7 {[%clk 0:01:36]} 52. Rc1 {[%clk 0:00:04]}  Bg6 {[%clk 0:01:35]} 53. Rce1 {[%clk 0:00:04]}  c4 {[%clk 0:01:34]} 54. bxc4 {[%clk 0:00:04]}  bxc4 {[%clk 0:01:34]} 55. Bc2 {[%clk 0:00:04]}  Kd6 {[%clk 0:01:33]} 56. Rd1 {[%clk 0:00:04]}  Kc5 {[%clk 0:01:33]} 57. Rxd4 {[%clk 0:00:03]}  Kxd4 {[%clk 0:01:33]} 58. Kf3 {[%clk 0:00:04]}  Re6 {[%clk 0:01:28]} 59. Re2 {[%clk 0:00:02]}  Rf6+ {[%clk 0:01:28]} 60. Kg4 {[%clk 0:00:02]}  Re6 {[%clk 0:01:26]} 61. Kxg5 {[%clk 0:00:03]}  Bxe4 {[%clk 0:01:26]} 62. Bxe4 {[%clk 0:00:03]}  Rxe4 {[%clk 0:01:26]} 63. Rc2 {[%clk 0:00:03]}  c3 {[%clk 0:01:26]} 64. g4 {[%clk 0:00:03]}  Kd3 {[%clk 0:01:25]} 65. Rc1 {[%clk 0:00:03]}  c2 {[%clk 0:01:25]} 66. Kf5 {[%clk 0:00:04]}  Re2 {[%clk 0:01:25]} 67. g5 {[%clk 0:00:04]}  Kd2 {[%clk 0:01:25]} 68. Rxc2+ {[%clk 0:00:03]}  Kxc2 {[%clk 0:01:25]} 69. g6 {[%clk 0:00:04]}  Kb2 {[%clk 0:01:25]} 70. Kf6 {[%clk 0:00:05]}  Kxa2 {[%clk 0:01:24]} 71. g7 {[%clk 0:00:06]}  Rg2 {[%clk 0:01:24]} 72. Kf7 {[%clk 0:00:06]}  a5 {[%clk 0:01:24]} 73. g8=Q {[%clk 0:00:07]}  Rxg8 {[%clk 0:01:24]} 74. Kxg8 {[%clk 0:00:07]}  a4 {[%clk 0:01:24]} 75. Kf7 {[%clk 0:00:07]}  a3 {[%clk 0:01:24]} 0-1

[Event "January 2 Late 2024"]
[Site "https://www.chess.com"]
[Date "2024.01.02"]
[Round "5"]
[White "Klenburg, Michael"]
[Black "Marcziter, Dmitrii"]
[Result "1-0"]
[Board "124"]
[TimeControl "180+1"]
[WhiteFideId "14102072"]
[BlackFideId "13900765"]
[WhiteElo "2543"]
[BlackElo "2379"]
[WhiteTeam "ISR"]
[BlackTeam "GER"]
[WhiteClock "0:01:34"]
[BlackClock "0:00:14"]

1. e4 {[%clk 0:02:59]}  e5 {[%clk 0:02:55]} 2. Nf3 {[%clk 0:02:58]}  Nc6 {[%clk 0:02:55]} 3. Bb5 {[%clk 0:02:58]}  f5 {[%clk 0:02:54]} 4. d3 {[%clk 0:02:57]}  fxe4 {[%clk 0:02:54]} 5. dxe4 {[%clk 0:02:57]}  Nf6 {[%clk 0:02:55]} 6. Nc3 {[%clk 0:02:56]}  d6 {[%clk 0:02:54]} 7. Bc4 {[%clk 0:02:50]}  Na5 {[%clk 0:02:53]} 8. Be2 {[%clk 0:02:45]}  Be6 {[%clk 0:02:34]} 9. O-O {[%clk 0:02:43]}  Be7 {[%clk 0:02:27]} 10. Ng5 {[%clk 0:02:40]}  Bg8 {[%clk 0:02:22]} 11. b3 {[%clk 0:02:36]}  Qd7 {[%clk 0:02:12]} 12. Be3 {[%clk 0:02:31]}  a6 {[%clk 0:01:49]} 13. Nd5 {[%clk 0:02:26]}  Nc6 {[%clk 0:01:26]} 14. c4 {[%clk 0:02:21]}  g6 {[%clk 0:01:19]} 15. f4 {[%clk 0:01:45]}  Nxd5 {[%clk 0:00:39]} 16. exd5 {[%clk 0:01:43]}  Nd8 {[%clk 0:00:34]} 17. Bg4 {[%clk 0:01:39]}  Bxg5 {[%clk 0:00:22]} 18. Bxd7+ {[%clk 0:01:38]}  Kxd7 {[%clk 0:00:23]} 19. fxg5 {[%clk 0:01:38]}  Ke7 {[%clk 0:00:14]} 20. Qf3 {[%clk 0:01:34]} 1-0

[Event "January 2 Late 2024"]
[Site "https://www.chess.com"]
[Date "2024.01.02"]
[Round "5"]
[White "Skibbe, Willi"]
[Black "Pinero Rodriguez, Carlos Jose"]
[Result "0-1"]
[Board "125"]
[TimeControl "180+1"]
[WhiteFideId "4682190"]
[BlackFideId "3901726"]
[WhiteElo "2406"]
[BlackElo "2538"]
[WhiteTeam "GER"]
[BlackTeam "VEN"]
[WhiteClock "0:00:00"]
[BlackClock "0:00:08"]

1. c4 {[%clk 0:02:36]}  Nf6 {[%clk 0:02:58]} 2. Nf3 {[%clk 0:02:30]}  g6 {[%clk 0:02:57]} 3. Nc3 {[%clk 0:02:30]}  Bg7 {[%clk 0:02:57]} 4. e4 {[%clk 0:02:30]}  d6 {[%clk 0:02:58]} 5. d4 {[%clk 0:02:31]}  O-O {[%clk 0:02:58]} 6. Be2 {[%clk 0:02:31]}  e5 {[%clk 0:02:59]} 7. Be3 {[%clk 0:02:30]}  Nc6 {[%clk 0:02:59]} 8. dxe5 {[%clk 0:02:30]}  dxe5 {[%clk 0:02:57]} 9. Qxd8 {[%clk 0:02:20]}  Rxd8 {[%clk 0:02:55]} 10. Nd5 {[%clk 0:02:14]}  Nxe4 {[%clk 0:02:49]} 11. Nxc7 {[%clk 0:02:13]}  Rb8 {[%clk 0:02:49]} 12. Nd5 {[%clk 0:02:13]}  Be6 {[%clk 0:02:43]} 13. O-O-O {[%clk 0:02:04]}  Rbc8 {[%clk 0:02:36]} 14. Kb1 {[%clk 0:02:01]}  f6 {[%clk 0:02:22]} 15. Nd2 {[%clk 0:01:47]}  Nxd2+ {[%clk 0:02:13]} 16. Rxd2 {[%clk 0:01:48]}  Kf7 {[%clk 0:02:11]} 17. Rhd1 {[%clk 0:01:47]}  b6 {[%clk 0:01:49]} 18. Bf3 {[%clk 0:01:35]}  f5 {[%clk 0:01:35]} 19. Bg5 {[%clk 0:01:33]}  Rd7 {[%clk 0:01:35]} 20. Ne3 {[%clk 0:01:12]}  Rxd2 {[%clk 0:01:31]} 21. Rxd2 {[%clk 0:01:13]}  e4 {[%clk 0:01:31]} 22. Be2 {[%clk 0:01:10]}  h6 {[%clk 0:01:05]} 23. Bf4 {[%clk 0:01:09]}  g5 {[%clk 0:01:03]} 24. Bd6 {[%clk 0:01:09]}  Nd4 {[%clk 0:01:03]} 25. c5 {[%clk 0:01:01]}  Nxe2 {[%clk 0:00:58]} 26. Rxe2 {[%clk 0:00:57]}  bxc5 {[%clk 0:00:57]} 27. Rc2 {[%clk 0:00:52]}  c4 {[%clk 0:00:51]} 28. b3 {[%clk 0:00:52]}  cxb3 {[%clk 0:00:47]} 29. axb3 {[%clk 0:00:53]}  Rd8 {[%clk 0:00:39]} 30. Rc7+ {[%clk 0:00:48]}  Kg6 {[%clk 0:00:37]} 31. Bc5 {[%clk 0:00:43]}  f4 {[%clk 0:00:33]} 32. Nc4 {[%clk 0:00:38]}  Bf5 {[%clk 0:00:16]} 33. Ka2 {[%clk 0:00:25]}  Rd1 {[%clk 0:00:17]} 34. b4 {[%clk 0:00:17]}  Be6 {[%clk 0:00:14]} 35. Bxa7 {[%clk 0:00:13]}  Rc1 {[%clk 0:00:11]} 36. Kb3 {[%clk 0:00:13]}  Rc3+ {[%clk 0:00:11]} 37. Ka4 {[%clk 0:00:11]}  Rxc4 {[%clk 0:00:12]} 38. Rxc4 {[%clk 0:00:09]}  Bxc4 {[%clk 0:00:13]} 39. b5 {[%clk 0:00:10]}  Bd5 {[%clk 0:00:10]} 40. Kb4 {[%clk 0:00:07]}  Bf8+ {[%clk 0:00:09]} 41. Ka5 {[%clk 0:00:06]}  Kf5 {[%clk 0:00:07]} 42. Bd4 {[%clk 0:00:06]}  Bd6 {[%clk 0:00:05]} 43. Ka6 {[%clk 0:00:07]}  Be5 {[%clk 0:00:06]} 44. Bc5 {[%clk 0:00:06]}  Bc3 {[%clk 0:00:06]} 45. b6 {[%clk 0:00:04]}  Bd2 {[%clk 0:00:06]} 46. b7 {[%clk 0:00:03]}  Bxb7+ {[%clk 0:00:06]} 47. Kxb7 {[%clk 0:00:04]}  e3 {[%clk 0:00:07]} 48. fxe3 {[%clk 0:00:00]}  fxe3 {[%clk 0:00:08]} 0-1

[Event "January 2 Late 2024"]
[Site "https://www.chess.com"]
[Date "2024.01.02"]
[Round "5"]
[White "Khodabandeh, Milad"]
[Black "Rangel, Daniel"]
[Result "1-0"]
[Board "127"]
[TimeControl "180+1"]
[WhiteFideId "12538620"]
[BlackFideId "2124475"]
[WhiteElo "2377"]
[BlackElo "2534"]
[WhiteTeam "IRI"]
[BlackTeam "BRA"]
[WhiteClock "0:00:08"]
[BlackClock "0:00:05"]

1. e4 {[%clk 0:02:57]}  c5 {[%clk 0:02:59]} 2. Nf3 {[%clk 0:02:57]}  g6 {[%clk 0:03:00]} 3. d4 {[%clk 0:02:57]}  cxd4 {[%clk 0:03:01]} 4. Qxd4 {[%clk 0:02:57]}  Nf6 {[%clk 0:03:00]} 5. e5 {[%clk 0:02:57]}  Nc6 {[%clk 0:03:01]} 6. Qa4 {[%clk 0:02:57]}  Nd5 {[%clk 0:03:01]} 7. Qe4 {[%clk 0:02:57]}  Ndb4 {[%clk 0:03:01]} 8. Bb5 {[%clk 0:02:56]}  Bg7 {[%clk 0:03:00]} 9. Nc3 {[%clk 0:02:51]}  O-O {[%clk 0:02:59]} 10. Bxc6 {[%clk 0:02:37]}  Nxc6 {[%clk 0:02:56]} 11. Bf4 {[%clk 0:02:37]}  d6 {[%clk 0:02:45]} 12. exd6 {[%clk 0:02:35]}  exd6 {[%clk 0:02:43]} 13. O-O-O {[%clk 0:02:31]}  Bf5 {[%clk 0:02:41]} 14. Qa4 {[%clk 0:02:22]}  Qb6 {[%clk 0:02:31]} 15. Be3 {[%clk 0:02:10]}  Qd8 {[%clk 0:02:29]} 16. Nd4 {[%clk 0:02:02]}  Nxd4 {[%clk 0:02:23]} 17. Bxd4 {[%clk 0:02:03]}  Qg5+ {[%clk 0:02:20]} 18. Kb1 {[%clk 0:01:51]}  Qxg2 {[%clk 0:02:19]} 19. Bxg7 {[%clk 0:01:51]}  Kxg7 {[%clk 0:02:17]} 20. Qd4+ {[%clk 0:01:45]}  Kg8 {[%clk 0:02:15]} 21. Nd5 {[%clk 0:01:45]}  f6 {[%clk 0:01:29]} 22. Ne7+ {[%clk 0:01:08]}  Kh8 {[%clk 0:01:28]} 23. Nxf5 {[%clk 0:01:08]}  gxf5 {[%clk 0:01:29]} 24. Rhg1 {[%clk 0:01:09]}  Qc6 {[%clk 0:01:22]} 25. Rg3 {[%clk 0:01:02]}  Rac8 {[%clk 0:01:17]} 26. Rc3 {[%clk 0:00:59]}  Qd7 {[%clk 0:00:56]} 27. Rxc8 {[%clk 0:00:53]}  Qxc8 {[%clk 0:00:57]} 28. Qxd6 {[%clk 0:00:47]}  Rf7 {[%clk 0:00:50]} 29. Rg1 {[%clk 0:00:40]}  Qf8 {[%clk 0:00:48]} 30. Qg3 {[%clk 0:00:26]}  Qe8 {[%clk 0:00:28]} 31. a3 {[%clk 0:00:24]}  Re7 {[%clk 0:00:27]} 32. Ka2 {[%clk 0:00:23]}  Qf7+ {[%clk 0:00:25]} 33. b3 {[%clk 0:00:21]}  Qe8 {[%clk 0:00:19]} 34. Qd6 {[%clk 0:00:19]}  Re6 {[%clk 0:00:17]} 35. Qc7 {[%clk 0:00:17]}  Re7 {[%clk 0:00:16]} 36. Qc5 {[%clk 0:00:15]}  Re2 {[%clk 0:00:12]} 37. a4 {[%clk 0:00:09]}  Qe3 {[%clk 0:00:05]} 38. fxe3 {[%clk 0:00:08]} 1-0